fUSD/lending_fUSD_20260620
["ID","MTS","AMOUNT","RATE_DAILY","PERIOD"]
[425823310,1781940652000,-500.0,0.00027025,2]
[425823308,1781940652000,-1033.75890619,0.000268,2]
[425823306,1781940652000,-1370.29817587,0.000268,2]
[425823309,1781940652000,-453.67217383,0.00026952,2]
[425823312,1781940652000,-500.0,0.00027025,2]
[425823313,1781940652000,-150.0,0.00027099,7]
[425823311,1781940652000,-500.0,0.00027025,2]
[425823314,1781940652000,-150.0,0.00027099,7]
[425823304,1781940652000,-424.98519286,0.000268,2]
[425823339,1781940652000,-11360.68,0.00027397,10]
[425823351,1781940652000,-520.6870103,0.00027499,30]
[425823340,1781940652000,-9467.23,0.00027397,10]
[425823362,1781940652000,-438.157559,0.000275,7]
[425823366,1781940652000,-150.0,0.00027529,7]
[425823368,1781940652000,-150.0,0.0002756,5]
[425823367,1781940652000,-150.0,0.00027541,7]
[425823369,1781940652000,-1033.75890619,0.000276,2]
[425823365,1781940652000,-150.0,0.00027529,7]
[425823370,1781940652000,-150.0,0.000276,7]
[425823372,1781940652000,-1037.84864387,0.00027639,2]
[425823364,1781940652000,-151.0,0.000275,7]
[425823371,1781940652000,-150.0,0.0002763,7]
[425823373,1781940652000,-304.20869016,0.00027639,2]
[425823376,1781940652000,-150.0,0.00027719,7]
[425823375,1781940652000,-150.0,0.00027701,7]
[425823377,1781940652000,-369.19,0.00027729,2]
[425823378,1781940652000,-369.19,0.00027729,2]
[425823379,1781940652000,-220.37418284,0.00027729,2]
[425823380,1781940652000,-2983.13770092,0.00027731,2]
[425823338,1781940652000,-1000.0,0.00027397,20]
[425823374,1781940652000,-208.35353725,0.00027694,30]
[425823360,1781940652000,-438.157559,0.000275,7]
[425823363,1781940652000,-438.157559,0.000275,7]
[425823348,1781940652000,-500.0,0.00027499,2]
[425823342,1781940652000,-1033.75890619,0.000274,2]
[425823343,1781940652000,-150.0,0.00027453,7]
[425823344,1781940652000,-369.19,0.0002749,2]
[425823346,1781940652000,-500.0,0.00027499,30]
[425823345,1781940652000,-500.0,0.00027499,30]
[425823347,1781940652000,-500.0,0.00027499,30]
[425823349,1781940652000,-1000.0,0.00027499,2]
[425823361,1781940652000,-438.157559,0.000275,7]
[425823341,1781940652000,-229.89153584,0.00027399,2]
[425823350,1781940652000,-213.8453188,0.00027499,30]
[425823353,1781940652000,-500.0,0.00027499,10]
[425823381,1781940652000,-156611.94971497,0.00027739,2]
[425823355,1781940652000,-50000.0,0.000275,5]
[425823354,1781940652000,-50000.0,0.000275,5]
[425823356,1781940652000,-500.0,0.000275,7]
[425823358,1781940652000,-151.0,0.000275,7]
[425823357,1781940652000,-51921.7,0.000275,3]
[425823359,1781940652000,-155.149866,0.000275,7]
[425823352,1781940652000,-500.0,0.00027499,30]
[425823385,1781940653000,-12384.20586586,0.00027739,2]
[425823382,1781940653000,-340.46658888,0.00027739,2]
[425823383,1781940653000,-453.3,0.00027739,2]
[425823384,1781940653000,-3891.37130719,0.00027739,2]
[425823387,1781940653000,-7675.75262192,0.00027739,2]
[425823386,1781940653000,-301.66351632,0.00027739,2]
[425823388,1781940653000,-19.86198303,0.00027739,2]
[425823389,1781940653000,-9072.70885279,0.00027739,2]
[425823391,1781940653000,-7586.36649687,0.00027397,10]
[425823390,1781940653000,-302.99350313,0.00027397,10]
[425823392,1781940653000,-7042.10714058,0.00027739,2]
[425823393,1781940662000,1160.2245,0.00014798,2]
[425823395,1781940703000,1241.29200709,0.00014798,2]
[425823396,1781940725000,177.06,0.00028552,120]
[425823397,1781940735000,184.72,0.00027973,120]
[425823399,1781940743000,1000.0,0.00030137,120]
[425823398,1781940743000,1000.0,0.00027397,120]
[425823401,1781940902000,1487.0,0.0002786,120]
[425823402,1781940903000,1487.0,0.00029253,120]
[425823404,1781941052000,1000.0,0.00027397,120]
[425823406,1781941319000,-8.70799291,0.00013129,2]
[425823407,1781941320000,1000.0,0.0003,120]
[425823408,1781941327000,1000.0,0.0003,120]
[425823409,1781941353000,1600.0,0.0003,120]
[425823411,1781941354000,1000.0,0.00030137,120]
[425823410,1781941354000,1000.0,0.00027397,120]
[425823412,1781941487000,-141.29200709,0.00013129,2]
[425823413,1781941506000,1040.0,0.00027912,120]
[425823414,1781941508000,1040.0,0.00029308,120]
[425823415,1781941542000,-254.14945952,0.00013536,7]
[425823416,1781941595000,-500.0,0.00013551,2]
[425823418,1781941649000,-192.19764429,0.00013551,2]
[425823417,1781941649000,294.0,0.00026048,120]
[425823419,1781941660000,1029.04502737,0.00027397,120]
[425823421,1781941702000,-500.0,0.0001355,2]
[425823423,1781941756000,-150.0,0.00013145,2]
[425823424,1781941809000,-216.0763772,0.00013549,2]
[425823447,1781941831000,-151.0,0.00014798,2]
[425823439,1781941831000,-153.0,0.00014355,2]
[425823438,1781941831000,-151.0,0.00014354,2]
[425823435,1781941831000,-152.0,0.00014354,2]
[425823437,1781941831000,-152.0,0.00014354,2]
[425823434,1781941831000,-150.0,0.00014354,2]
[425823436,1781941831000,-151.0,0.00014354,2]
[425823448,1781941831000,-152.0,0.00014798,2]
[425823430,1781941831000,-151.33,0.00014009,2]
[425823432,1781941831000,-151.0,0.00014354,2]
[425823431,1781941831000,-152.0,0.00014354,2]
[425823428,1781941831000,-232.96988232,0.00013554,2]
[425823427,1781941831000,-150.0,0.00013552,2]
[425823426,1781941831000,-532.28660776,0.00013551,2]
[425823429,1781941831000,-160.0,0.00013556,2]
[425823442,1781941831000,-150.0,0.00014382,2]
[425823433,1781941831000,-153.0,0.00014354,2]
[425823440,1781941831000,-151.0,0.00014356,2]
[425823441,1781941831000,-150.0,0.00014361,2]
[425823457,1781941831000,-500.0,0.00015156,2]
[425823460,1781941831000,-251.87468302,0.00015638,2]
[425823464,1781941831000,-200.0,0.0001581,2]
[425823467,1781941831000,-500.0,0.0001581,2]
[425823453,1781941831000,-500.0,0.00014897,2]
[425823455,1781941831000,-194.0,0.00014927,2]
[425823462,1781941831000,-300.0,0.00015638,2]
[425823471,1781941831000,-424.0,0.00016164,2]
[425823451,1781941831000,-500.0,0.00014897,2]
[425823449,1781941831000,-151.0,0.00014798,2]
[425823445,1781941831000,-150.0,0.0001464,2]
[425823444,1781941831000,-150.0,0.00014497,2]
[425823446,1781941831000,-150.0,0.00014784,2]
[425823469,1781941831000,-1108.27597976,0.00015934,2]
[425823443,1781941831000,-153.0,0.00014466,2]
[425823512,1781941832000,-294.0,0.00017365,2]
[425823515,1781941832000,-935.0,0.00017555,2]
[425823513,1781941832000,-1613.0535,0.0001744,2]
[425823509,1781941832000,-197.41,0.00017229,2]
[425823511,1781941832000,-170.16,0.00017258,2]
[425823507,1781941832000,-763.83,0.00017031,2]
[425823514,1781941832000,-1852.42,0.00017543,2]
[425823510,1781941832000,-175.15,0.00017243,2]
[425823516,1781941832000,-161.05,0.00017603,2]
[425823525,1781941832000,-153.0,0.00018043,2]
[425823519,1781941832000,-250.0,0.00017903,2]
[425823518,1781941832000,-1123.52,0.000179,2]
[425823524,1781941832000,-200.0,0.00017999,2]
[425823521,1781941832000,-3064.77850562,0.00017943,2]
[425823520,1781941832000,-500.0,0.00017903,2]
[425823522,1781941832000,-151.0,0.00017943,2]
[425823508,1781941832000,-199.08,0.00017031,2]
[425823523,1781941832000,-1672.7364795,0.00017988,2]
[425823526,1781941832000,-500.0,0.00018177,2]
[425823517,1781941832000,-170.16,0.00017833,2]
[425823506,1781941832000,-1555.5,0.00016892,2]
[425823496,1781941832000,-424.0,0.00016164,2]
[425823502,1781941832000,-424.0,0.00016164,2]
[425823473,1781941832000,-424.0,0.00016164,2]
[425823475,1781941832000,-424.0,0.00016164,2]
[425823482,1781941832000,-424.0,0.00016164,2]
[425823478,1781941832000,-424.0,0.00016164,2]
[425823477,1781941832000,-424.0,0.00016164,2]
[425823481,1781941832000,-424.0,0.00016164,2]
[425823476,1781941832000,-424.0,0.00016164,2]
[425823485,1781941832000,-424.0,0.00016164,2]
[425823486,1781941832000,-424.0,0.00016164,2]
[425823488,1781941832000,-424.0,0.00016164,2]
[425823492,1781941832000,-424.0,0.00016164,2]
[425823491,1781941832000,-424.0,0.00016164,2]
[425823494,1781941832000,-424.0,0.00016164,2]
[425823504,1781941832000,-550.0,0.00016437,2]
[425823498,1781941832000,-424.0,0.00016164,2]
[425823527,1781941832000,-1419.95,0.00018287,2]
[425823497,1781941832000,-424.0,0.00016164,2]
[425823501,1781941832000,-424.0,0.00016164,2]
[425823500,1781941832000,-424.0,0.00016164,2]
[425823503,1781941832000,-1500.0,0.00016344,2]
[425823499,1781941832000,-424.0,0.00016164,2]
[425823505,1781941832000,-453.0,0.00016438,2]
[425823528,1781941832000,-231.43121047,0.000184,2]
[425823532,1781941832000,-453.0,0.0001841,2]
[425823537,1781941832000,-500.0,0.0001863,2]
[425823529,1781941832000,-231.43121046,0.000184,2]
[425823558,1781941832000,-211.03972969,0.0001863,2]
[425823557,1781941832000,-119.24027031,0.0001863,2]
[425823559,1781941832000,-393.96027031,0.0001863,2]
[425823561,1781941832000,-605.0,0.0001863,2]
[425823563,1781941832000,-500.0,0.0001863,2]
[425823562,1781941832000,-605.0,0.0001863,2]
[425823560,1781941832000,-605.0,0.0001863,2]
[425823565,1781941832000,-500.0,0.0001863,2]
[425823552,1781941832000,-150.0,0.0001863,2]
[425823567,1781941832000,-500.0,0.0001863,2]
[425823569,1781941832000,-605.0,0.0001863,2]
[425823564,1781941832000,-605.0,0.0001863,2]
[425823566,1781941832000,-605.0,0.0001863,2]
[425823570,1781941832000,-138.68602575,0.0001863,2]
[425823571,1781941832000,-361.31397425,0.0001863,2]
[425823572,1781941832000,-538.68602575,0.0001863,2]
[425823573,1781941832000,-66.31397425,0.0001863,2]
[425823574,1781941832000,-500.0,0.0001863,2]
[425823575,1781941832000,-161.18132893,0.0001863,2]
[425823568,1781941832000,-605.0,0.0001863,2]
[425823553,1781941832000,-500.0,0.0001863,2]
[425823556,1781941832000,-277.72991782,0.0001863,2]
[425823551,1781941832000,-605.0,0.0001863,2]
[425823530,1781941832000,-231.43121046,0.000184,2]
[425823533,1781941832000,-500.0,0.00018451,2]
[425823536,1781941832000,-500.0,0.0001863,2]
[425823531,1781941832000,-170.16,0.00018408,2]
[425823535,1781941832000,-199.5,0.00018552,2]
[425823534,1781941832000,-1734.62772924,0.00018536,2]
[425823538,1781941832000,-500.0,0.0001863,2]
[425823550,1781941832000,-500.0,0.0001863,2]
[425823542,1781941832000,-500.0,0.0001863,2]
[425823541,1781941832000,-202.6298933,0.0001863,2]
[425823540,1781941832000,-500.0,0.0001863,2]
[425823543,1781941832000,-151.49636419,0.0001863,2]
[425823544,1781941832000,-500.0,0.0001863,2]
[425823548,1781941832000,-605.0,0.0001863,2]
[425823546,1781941832000,-150.0,0.0001863,2]
[425823545,1781941832000,-618.78572313,0.0001863,2]
[425823547,1781941832000,-605.0,0.0001863,2]
[425823549,1781941832000,-150.0,0.0001863,2]
[425823554,1781941832000,-605.0,0.0001863,2]
[425823555,1781941832000,-170.12940884,0.0001863,2]
[425823539,1781941832000,-500.0,0.0001863,2]
[425823583,1781941838000,-150.0,0.0001863,2]
[425823578,1781941838000,-424.0,0.00016164,2]
[425823580,1781941838000,-443.67254179,0.00016164,2]
[425823579,1781941838000,-424.0,0.00016164,2]
[425823581,1781941838000,-443.81867107,0.0001863,2]
[425823582,1781941838000,-500.0,0.0001863,2]
[425823584,1781941838000,-516.02529423,0.0001863,2]
[425823586,1781941838000,-88.97470577,0.0001863,2]
[425823591,1781941838000,-103.20908546,0.0001863,2]
[425823588,1781941838000,-254.88872959,0.0001863,2]
[425823587,1781941838000,-245.11127041,0.0001863,2]
[425823589,1781941838000,-150.0,0.0001863,2]
[425823590,1781941838000,-605.0,0.0001863,2]
[425823585,1781941838000,-500.0,0.00016164,2]
[425823641,1781941840000,-292.84,0.0001939,2]
[425823640,1781941840000,-7086.94,0.00019339,2]
[425823639,1781941840000,-8468.01,0.00019339,2]
[425823636,1781941840000,-170.16,0.00018983,2]
[425823637,1781941840000,-1798.80895522,0.00019084,2]
[425823632,1781941840000,-605.0,0.0001863,2]
[425823629,1781941840000,-605.0,0.0001863,2]
[425823644,1781941840000,-410.04004432,0.00019699,2]
[425823631,1781941840000,-605.0,0.0001863,2]
[425823635,1781941840000,-299.78152976,0.00018847,2]
[425823634,1781941840000,-1521.0,0.00018755,2]
[425823647,1781941840000,-175.0,0.0002,2]
[425823642,1781941840000,-294.0,0.00019536,2]
[425823645,1781941840000,-150.0,0.00019877,2]
[425823643,1781941840000,-1865.36488656,0.00019632,2]
[425823630,1781941840000,-605.0,0.0001863,2]
[425823648,1781941840000,-174.0,0.0002,2]
[425823649,1781941840000,-400.0,0.0002,2]
[425823650,1781941840000,-904.0,0.0002,2]
[425823658,1781941840000,-151.0,0.0002,2]
[425823660,1781941840000,-190.63801148,0.0002,2]
[425823655,1781941840000,-271.0,0.0002,2]
[425823657,1781941840000,-158.0,0.0002,2]
[425823651,1781941840000,-191.0,0.0002,2]
[425823654,1781941840000,-189.0,0.0002,2]
[425823646,1781941840000,-159.0,0.0002,2]
[425823627,1781941840000,-603.22024811,0.0001863,2]
[425823626,1781941840000,-605.0,0.0001863,2]
[425823628,1781941840000,-605.0,0.0001863,2]
[425823602,1781941840000,-500.0,0.00016164,2]
[425823603,1781941840000,-500.0,0.00016164,2]
[425823610,1781941840000,-642.0,0.00016164,2]
[425823606,1781941840000,-500.0,0.00016164,2]
[425823605,1781941840000,-500.0,0.00016164,2]
[425823608,1781941840000,-642.0,0.00016164,2]
[425823604,1781941840000,-500.0,0.00016164,2]
[425823609,1781941840000,-500.0,0.00016164,2]
[425823607,1781941840000,-500.0,0.00016164,2]
[425823611,1781941840000,-500.0,0.00016164,2]
[425823612,1781941840000,-642.0,0.00016164,2]
[425823613,1781941840000,-500.0,0.00016164,2]
[425823614,1781941840000,-642.0,0.00016164,2]
[425823615,1781941840000,-500.0,0.00016164,2]
[425823616,1781941840000,-396.79091454,0.0001863,2]
[425823623,1781941840000,-500.0,0.0001863,2]
[425823622,1781941840000,-500.0,0.0001863,2]
[425823617,1781941840000,-185.55518618,0.0001863,2]
[425823618,1781941840000,-500.0,0.0001863,2]
[425823621,1781941840000,-500.0,0.0001863,2]
[425823619,1781941840000,-500.0,0.0001863,2]
[425823620,1781941840000,-605.0,0.0001863,2]
[425823624,1781941840000,-500.0,0.0001863,2]
[425823625,1781941840000,-500.0,0.0001863,2]
[425823652,1781941840000,-169.0,0.0002,2]
[425823633,1781941840000,-619.41368462,0.0001863,2]
[425823653,1781941840000,-637.0,0.0002,2]
[425823638,1781941840000,-199.08,0.0001916,2]
[425823659,1781941840000,-190.63801148,0.0002,2]
[425823687,1781941840000,-324.0,0.00021,2]
[425823690,1781941840000,-151.33,0.00021013,2]
[425823695,1781941840000,-151.0,0.00021276,2]
[425823693,1781941840000,-151.0,0.00021276,2]
[425823692,1781941840000,-200.0,0.00021276,2]
[425823694,1781941840000,-151.0,0.00021276,2]
[425823697,1781941840000,-151.0,0.00021276,2]
[425823696,1781941840000,-151.0,0.00021276,2]
[425823699,1781941840000,-151.0,0.00021276,2]
[425823698,1781941840000,-151.0,0.00021276,2]
[425823700,1781941840000,-151.0,0.00021276,2]
[425823702,1781941840000,-500.0,0.00021276,2]
[425823689,1781941840000,-153.70171519,0.00021,2]
[425823701,1781941840000,-151.0,0.00021276,2]
[425823703,1781941840000,-151.0,0.00021276,2]
[425823705,1781941840000,-151.0,0.00021276,2]
[425823706,1781941840000,-151.0,0.00021276,2]
[425823707,1781941840000,-2080.17592889,0.00021276,2]
[425823708,1781941840000,-500.0,0.00021276,2]
[425823711,1781941840000,-151.0,0.00021276,2]
[425823656,1781941840000,-324.0,0.0002,2]
[425823713,1781941840000,-151.0,0.00021276,2]
[425823714,1781941840000,-151.0,0.00021276,2]
[425823712,1781941840000,-500.0,0.00021276,2]
[425823716,1781941840000,-151.0,0.00021276,2]
[425823715,1781941840000,-500.0,0.00021276,2]
[425823704,1781941840000,-151.0,0.00021276,2]
[425823691,1781941840000,-500.0,0.00021272,2]
[425823710,1781941840000,-151.0,0.00021276,2]
[425823685,1781941840000,-189.0,0.00021,2]
[425823688,1781941840000,-158.0,0.00021,2]
[425823662,1781941840000,-190.63801148,0.0002,2]
[425823661,1781941840000,-190.63801148,0.0002,2]
[425823663,1781941840000,-190.6380115,0.0002,2]
[425823665,1781941840000,-500.0,0.0002,2]
[425823667,1781941840000,-286.01668497,0.0002,2]
[425823666,1781941840000,-500.0,0.0002,2]
[425823668,1781941840000,-171.075569,0.0002,2]
[425823672,1781941840000,-216.43,0.00020628,2]
[425823670,1781941840000,-1934.38338736,0.0002018,2]
[425823669,1781941840000,-175.15,0.00020116,2]
[425823671,1781941840000,-453.0,0.00020381,2]
[425823674,1781941840000,-2005.9555727,0.00020728,2]
[425823664,1781941840000,-500.0,0.0002,2]
[425823676,1781941840000,-166.66,0.00020989,2]
[425823673,1781941840000,-895.85167494,0.00020644,2]
[425823683,1781941840000,-169.0,0.00021,2]
[425823680,1781941840000,-400.0,0.00021,2]
[425823681,1781941840000,-904.0,0.00021,2]
[425823684,1781941840000,-637.0,0.00021,2]
[425823682,1781941840000,-191.0,0.00021,2]
[425823677,1781941840000,-159.22809012,0.00021,2]
[425823678,1781941840000,-175.0,0.00021,2]
[425823675,1781941840000,-10394.09878788,0.0002089,2]
[425823679,1781941840000,-174.0,0.00021,2]
[425823686,1781941840000,-271.0,0.00021,2]
[425823740,1781941841000,-150.0,0.00021644,2]
[425823741,1781941841000,-150.66816303,0.00021644,2]
[425823752,1781941841000,-296.04910001,0.00021644,2]
[425823745,1781941841000,-500.0,0.00021644,2]
[425823744,1781941841000,-500.0,0.00021644,2]
[425823747,1781941841000,-500.0,0.00021644,2]
[425823746,1781941841000,-500.0,0.00021644,2]
[425823748,1781941841000,-480.93996802,0.00021644,2]
[425823749,1781941841000,-237.61210856,0.00021644,2]
[425823750,1781941841000,-150.0,0.00021644,2]
[425823757,1781941841000,-500.0,0.00021644,2]
[425823755,1781941841000,-150.0,0.00021644,2]
[425823751,1781941841000,-150.0,0.00021644,2]
[425823753,1781941841000,-150.0,0.00021644,2]
[425823756,1781941841000,-273.28062091,0.00021644,2]
[425823759,1781941841000,-500.0,0.00021644,2]
[425823758,1781941841000,-500.0,0.00021644,2]
[425823760,1781941841000,-500.0,0.00021644,2]
[425823743,1781941841000,-500.0,0.00021644,2]
[425823761,1781941841000,-500.0,0.00021644,2]
[425823754,1781941841000,-150.0,0.00021644,2]
[425823742,1781941841000,-500.0,0.00021644,2]
[425823726,1781941841000,-151.0,0.00021276,2]
[425823737,1781941841000,-199.08,0.00021288,2]
[425823762,1781941841000,-500.0,0.00021644,2]
[425823718,1781941841000,-500.0,0.00021276,2]
[425823717,1781941841000,-151.0,0.00021276,2]
[425823720,1781941841000,-151.0,0.00021276,2]
[425823719,1781941841000,-151.0,0.00021276,2]
[425823722,1781941841000,-151.0,0.00021276,2]
[425823721,1781941841000,-500.0,0.00021276,2]
[425823724,1781941841000,-500.0,0.00021276,2]
[425823727,1781941841000,-500.0,0.00021276,2]
[425823723,1781941841000,-151.0,0.00021276,2]
[425823725,1781941841000,-151.0,0.00021276,2]
[425823728,1781941841000,-151.0,0.00021276,2]
[425823729,1781941841000,-151.0,0.00021276,2]
[425823731,1781941841000,-151.0,0.00021276,2]
[425823730,1781941841000,-500.0,0.00021276,2]
[425823732,1781941841000,-151.0,0.00021276,2]
[425823734,1781941841000,-151.0,0.00021276,2]
[425823733,1781941841000,-500.0,0.00021276,2]
[425823736,1781941841000,-500.0,0.00021276,2]
[425823735,1781941841000,-151.0,0.00021276,2]
[425823739,1781941841000,-3823.0893,0.00021544,2]
[425823738,1781941841000,-166.66,0.00021431,2]
[425823763,1781941841000,-500.0,0.00021644,2]
[425823791,1781941841000,-150.0,0.00021918,2]
[425823765,1781941841000,-160.65177913,0.00021644,2]
[425823811,1781941841000,-400.0,0.00022,2]
[425823793,1781941841000,-150.0,0.00021918,2]
[425823795,1781941841000,-150.0,0.00021918,2]
[425823794,1781941841000,-150.0,0.00021918,2]
[425823800,1781941841000,-150.0,0.00021918,2]
[425823803,1781941841000,-150.0,0.00021918,2]
[425823797,1781941841000,-150.0,0.00021918,2]
[425823801,1781941841000,-150.0,0.00021918,2]
[425823805,1781941841000,-150.0,0.00021918,2]
[425823792,1781941841000,-150.0,0.00021918,2]
[425823798,1781941841000,-150.0,0.00021918,2]
[425823796,1781941841000,-150.0,0.00021918,2]
[425823799,1781941841000,-150.0,0.00021918,2]
[425823804,1781941841000,-150.0,0.00021918,2]
[425823807,1781941841000,-150.0,0.00021918,2]
[425823806,1781941841000,-150.0,0.00021918,2]
[425823810,1781941841000,-174.0,0.00022,2]
[425823809,1781941841000,-175.0,0.00022,2]
[425823808,1781941841000,-150.0,0.00021918,2]
[425823764,1781941841000,-150.0,0.00021644,2]
[425823802,1781941841000,-150.0,0.00021918,2]
[425823788,1781941841000,-150.0,0.00021918,2]
[425823782,1781941841000,-10394.09878783,0.00021891,2]
[425823781,1781941841000,-166.66,0.00021873,2]
[425823766,1781941841000,-500.0,0.00021644,2]
[425823767,1781941841000,-150.0,0.00021644,2]
[425823769,1781941841000,-154.94785306,0.00021644,2]
[425823768,1781941841000,-500.0,0.00021644,2]
[425823770,1781941841000,-500.0,0.00021644,2]
[425823771,1781941841000,-500.0,0.00021644,2]
[425823777,1781941841000,-294.0,0.00021706,2]
[425823772,1781941841000,-163.51122534,0.00021644,2]
[425823774,1781941841000,-245.15271716,0.00021644,2]
[425823784,1781941841000,-200.0,0.00021918,2]
[425823773,1781941841000,-150.0,0.00021644,2]
[425823776,1781941841000,-201.49951,0.00021644,2]
[425823779,1781941841000,-200.0,0.00021824,2]
[425823778,1781941841000,-2500.0,0.00021818,2]
[425823789,1781941841000,-150.0,0.00021918,2]
[425823786,1781941841000,-150.0,0.00021918,2]
[425823790,1781941841000,-150.0,0.00021918,2]
[425823783,1781941841000,-5000.0,0.00021918,2]
[425823780,1781941841000,-2157.14243826,0.00021824,2]
[425823785,1781941841000,-150.0,0.00021918,2]
[425823787,1781941841000,-150.0,0.00021918,2]
[425823775,1781941841000,-150.0,0.00021644,2]
[425823815,1781941842000,-637.0,0.00022,2]
[425823812,1781941842000,-904.0,0.00022,2]
[425823813,1781941842000,-191.0,0.00022,2]
[425823816,1781941842000,-189.0,0.00022,2]
[425823817,1781941842000,-271.0,0.00022,2]
[425823814,1781941842000,-169.0,0.00022,2]
[425823819,1781941842000,-158.0,0.00022,2]
[425823827,1781941842000,-663.62,0.00022466,2]
[425823823,1781941842000,-166.66,0.00022315,30]
[425823822,1781941842000,-200.0,0.00022107,2]
[425823821,1781941842000,-15770.33,0.00022,2]
[425823824,1781941842000,-453.0,0.00022353,2]
[425823818,1781941842000,-324.0,0.00022,2]
[425823953,1781941843000,-2610.2454883,0.00025412,2]
[425823956,1781941843000,-22199.9283,0.00025423,14]
[425823957,1781941843000,-151.00138861,0.00025503,2]
[425823955,1781941843000,-16407.50382034,0.00025423,14]
[425823950,1781941843000,-153.75,0.00025302,30]
[425823951,1781941843000,-286.58052293,0.00025329,2]
[425823954,1781941843000,-10968.02123971,0.00025423,14]
[425823947,1781941843000,-431.03333463,0.00025115,2]
[425823952,1781941843000,-336.43,0.0002533,2]
[425823959,1781941843000,-165.97,0.00025525,2]
[425823961,1781941843000,-5528.0,0.000256,5]
[425823960,1781941843000,-199.08,0.00025546,2]
[425823949,1781941843000,-153.82,0.00025302,30]
[425823962,1781941843000,-153.82,0.00025624,2]
[425823965,1781941843000,-402.0,0.0002564,2]
[425823966,1781941843000,-2781.82699784,0.0002566,2]
[425823969,1781941843000,-500.0,0.00025682,2]
[425823963,1781941843000,-153.75,0.00025624,2]
[425823967,1781941843000,-500.0,0.00025682,2]
[425823964,1781941843000,-308.0,0.0002564,2]
[425823968,1781941843000,-500.0,0.00025682,2]
[425823970,1781941843000,-500.0,0.00025682,2]
[425823958,1781941843000,-179.76368085,0.00025503,2]
[425823943,1781941843000,-191.69685558,0.00025,4]
[425823948,1781941843000,-200.0,0.00025135,2]
[425823945,1781941843000,-4976.24805739,0.0002504,2]
[425823971,1781941843000,-500.0,0.00025682,2]
[425823923,1781941843000,-153.75,0.00024658,2]
[425823927,1781941843000,-308.0,0.00024955,2]
[425823922,1781941843000,-153.82,0.00024658,2]
[425823926,1781941843000,-6217.28133889,0.00024923,7]
[425823925,1781941843000,-5528.0,0.000249,3]
[425823924,1781941843000,-10394.09878783,0.00024894,2]
[425823929,1781941843000,-153.82,0.0002498,7]
[425823928,1781941843000,-402.0,0.00024955,2]
[425823931,1781941843000,-172.35977172,0.00024998,2]
[425823934,1781941843000,-409.40783886,0.00025,2]
[425823933,1781941843000,-189.81952487,0.00025,2]
[425823930,1781941843000,-153.75,0.0002498,7]
[425823932,1781941843000,-176.12492282,0.00025,2]
[425823936,1781941843000,-195.84484808,0.00025,2]
[425823938,1781941843000,-648.88882288,0.00025,2]
[425823937,1781941843000,-184.32820068,0.00025,2]
[425823935,1781941843000,-918.70008222,0.00025,2]
[425823939,1781941843000,-207.02393511,0.00025,2]
[425823940,1781941843000,-271.90962168,0.00025,2]
[425823942,1781941843000,-238.18046184,0.00025,4]